fUSD/lending_fUSD_20260522
["ID","MTS","AMOUNT","RATE_DAILY","PERIOD"]
[422793287,1779407432000,-150.0,0.0001358,2]
[422793289,1779407432000,-406.1017,0.00013597,2]
[422793290,1779407432000,-160.48150408,0.000136,2]
[422793291,1779407432000,-480.06358615,0.000136,2]
[422793292,1779407432000,-300.0,0.0001363,2]
[422793293,1779407432000,-1200.0,0.00013631,2]
[422793296,1779407432000,-324.36,0.0001365,2]
[422793295,1779407432000,-153.12137068,0.00013632,2]
[422793297,1779407432000,-25078.10635098,0.0001369,2]
[422793298,1779407432000,-500.0,0.00013698,2]
[422793299,1779407432000,-150.0,0.00013698,2]
[422793302,1779407432000,-500.0,0.00013699,2]
[422793300,1779407432000,-168.02,0.00013699,2]
[422793325,1779407432000,-500.0,0.00013699,2]
[422793358,1779407432000,-500.0,0.00013699,2]
[422793326,1779407432000,-500.0,0.00013699,2]
[422793351,1779407432000,-300.0,0.00013699,2]
[422793352,1779407432000,-500.24695847,0.00013699,2]
[422793370,1779407432000,-500.0,0.00013699,2]
[422793355,1779407432000,-500.0,0.00013699,2]
[422793353,1779407432000,-150.0,0.00013699,2]
[422793357,1779407432000,-500.0,0.00013699,2]
[422793359,1779407432000,-500.0,0.00013699,2]
[422793356,1779407432000,-500.0,0.00013699,2]
[422793350,1779407432000,-500.0,0.00013699,2]
[422793361,1779407432000,-500.0,0.00013699,2]
[422793360,1779407432000,-307.516,0.00013699,2]
[422793364,1779407432000,-500.0,0.00013699,2]
[422793363,1779407432000,-500.0,0.00013699,2]
[422793366,1779407432000,-500.0,0.00013699,2]
[422793365,1779407432000,-500.0,0.00013699,2]
[422793369,1779407432000,-500.0,0.00013699,2]
[422793368,1779407432000,-500.0,0.00013699,2]
[422793371,1779407432000,-55253.45839125,0.000137,2]
[422793362,1779407432000,-500.0,0.00013699,2]
[422793349,1779407432000,-500.0,0.00013699,2]
[422793348,1779407432000,-378.19978835,0.00013699,2]
[422793347,1779407432000,-500.0,0.00013699,2]
[422793329,1779407432000,-500.0,0.00013699,2]
[422793328,1779407432000,-500.0,0.00013699,2]
[422793334,1779407432000,-500.0,0.00013699,2]
[422793330,1779407432000,-500.0,0.00013699,2]
[422793332,1779407432000,-500.0,0.00013699,2]
[422793333,1779407432000,-500.0,0.00013699,2]
[422793331,1779407432000,-396.04803698,0.00013699,2]
[422793335,1779407432000,-500.0,0.00013699,2]
[422793338,1779407432000,-500.0,0.00013699,2]
[422793336,1779407432000,-500.0,0.00013699,2]
[422793337,1779407432000,-500.0,0.00013699,2]
[422793339,1779407432000,-500.0,0.00013699,2]
[422793340,1779407432000,-500.0,0.00013699,2]
[422793341,1779407432000,-500.0,0.00013699,2]
[422793342,1779407432000,-589.6048037,0.00013699,2]
[422793344,1779407432000,-171.96058594,0.00013699,2]
[422793345,1779407432000,-500.0,0.00013699,2]
[422793343,1779407432000,-500.0,0.00013699,2]
[422793346,1779407432000,-500.0,0.00013699,2]
[422793367,1779407432000,-500.0,0.00013699,2]
[422793327,1779407432000,-500.0,0.00013699,2]
[422793657,1779407443000,-2764.6415156,0.000137,2]
[422793656,1779407443000,-892.11220722,0.000136,2]
[422793658,1779407443000,-2119.33276107,0.000137,2]
[422793683,1779407446000,-13122.93369061,0.000137,2]
[422793682,1779407446000,-427.46515504,0.000137,2]
[422793702,1779407709000,151.13116773,0.00028767,120]
[422793703,1779407894000,2000.0,0.00028767,120]
[422793705,1779408350000,-162.60192281,0.000131,2]
[422793707,1779408541000,1000.0,0.00028766,120]
[422793708,1779408550000,-151.8412,0.0001277,2]
[422793710,1779408559000,-77.94573251,0.00012699,2]
[422793709,1779408559000,-151.0,0.000126,2]
[422793716,1779408631000,-329.30366811,0.00012634,2]
[422793715,1779408631000,-170.69633189,0.00012599,2]
[422793741,1779408632000,-150.0,0.00013591,2]
[422793738,1779408632000,-2340.64923059,0.00013576,2]
[422793751,1779408632000,-4059.7551652,0.00013676,2]
[422793737,1779408632000,-163.45,0.0001356,2]
[422793739,1779408632000,-5882.58340369,0.00013583,2]
[422793736,1779408632000,-207.0136216,0.0001356,2]
[422793749,1779408632000,-3477.7617485,0.00013676,2]
[422793746,1779408632000,-169.26,0.00013642,2]
[422793743,1779408632000,-18319.4598096,0.000136,2]
[422793747,1779408632000,-27814.1730319,0.00013674,2]
[422793742,1779408632000,-1621.21,0.00013591,2]
[422793745,1779408632000,-1396.11,0.0001363,2]
[422793731,1779408632000,-150.0,0.00013533,2]
[422793748,1779408632000,-2603.58425726,0.00013675,2]
[422793744,1779408632000,-150.0,0.00013618,2]
[422793729,1779408632000,-1200.0,0.00013532,2]
[422793727,1779408632000,-150.0,0.00013488,2]
[422793733,1779408632000,-584.0,0.00013533,2]
[422793728,1779408632000,-150.0,0.00013488,2]
[422793725,1779408632000,-170.69633189,0.00013453,2]
[422793734,1779408632000,-59274.00108361,0.00013534,2]
[422793735,1779408632000,-150.0,0.00013553,2]
[422793726,1779408632000,-150.0,0.00013488,2]
[422793724,1779408632000,-442.92807719,0.000131,2]
[422793722,1779408632000,-671.0988,0.0001277,2]
[422793723,1779408632000,-166.77,0.00013089,2]
[422793721,1779408632000,-1068.83318341,0.00012757,2]
[422793720,1779408632000,-122.05426749,0.00012699,2]
[422793718,1779408632000,-6914.47226199,0.00012634,2]
[422793719,1779408632000,-3878.52,0.00012693,2]
[422793717,1779408632000,-994.3940699,0.00012634,2]
[422793730,1779408632000,-300.0,0.00013532,2]
[422793750,1779408632000,-106016.2369161,0.00013676,2]
[422793763,1779408632000,-500.0,0.00013699,2]
[422793752,1779408632000,-102728.0732783,0.00013676,2]
[422793768,1779408632000,-500.0,0.00013699,2]
[422793770,1779408632000,-500.0,0.00013699,2]
[422793775,1779408632000,-500.0,0.00013699,2]
[422793774,1779408632000,-173.11818464,0.00013699,2]
[422793778,1779408632000,-189.00839024,0.00013699,2]
[422793776,1779408632000,-500.0,0.00013699,2]
[422793769,1779408632000,-543.10004669,0.00013699,2]
[422793779,1779408632000,-362.72052307,0.00013699,2]
[422793781,1779408632000,-151.0,0.000137,2]
[422793783,1779408632000,-71473.14871408,0.000137,2]
[422793782,1779408632000,-313135.87055501,0.000137,2]
[422793784,1779408632000,-159293.11054856,0.000137,2]
[422793753,1779408632000,-150.0,0.00013683,2]
[422793785,1779408632000,-3779.36486185,0.000137,2]
[422793780,1779408632000,-365.55704411,0.000137,2]
[422793766,1779408632000,-500.0,0.00013699,2]
[422793777,1779408632000,-200.14197766,0.00013699,2]
[422793767,1779408632000,-500.0,0.00013699,2]
[422793754,1779408632000,-162.43,0.00013686,2]
[422793760,1779408632000,-500.0,0.00013699,2]
[422793773,1779408632000,-533.05427494,0.00013699,2]
[422793759,1779408632000,-500.0,0.00013699,2]
[422793756,1779408632000,-167.2,0.00013699,2]
[422793758,1779408632000,-500.0,0.00013699,2]
[422793757,1779408632000,-500.0,0.00013699,2]
[422793755,1779408632000,-151.0,0.00013697,2]
[422793761,1779408632000,-500.0,0.00013699,2]
[422793765,1779408632000,-500.0,0.00013699,2]
[422793764,1779408632000,-500.0,0.00013699,2]
[422793771,1779408632000,-500.0,0.00013699,2]
[422793772,1779408632000,-500.0,0.00013699,2]
[422793762,1779408632000,-500.0,0.00013699,2]
[422793826,1779408638000,-167.2,0.0001387,2]
[422793823,1779408638000,-150.0,0.00013813,2]
[422793822,1779408638000,-500.0,0.00013813,2]
[422793821,1779408638000,-2500.0,0.000138,2]
[422793825,1779408638000,-214.25489035,0.00013859,2]
[422793827,1779408638000,-2340.64923051,0.0001387,2]
[422793832,1779408638000,-150.0,0.00013944,2]
[422793828,1779408638000,-150.0,0.00013879,2]
[422793830,1779408638000,-1000.0,0.000139,5]
[422793831,1779408638000,-1621.21,0.00013931,2]
[422793833,1779408638000,-5882.58340364,0.00013959,2]
[422793837,1779408638000,-150.0,0.00014009,2]
[422793818,1779408638000,-1503.59063096,0.00013771,2]
[422793829,1779408638000,-18319.45980957,0.00013889,2]
[422793819,1779408638000,-7181.99440644,0.000138,2]
[422793804,1779408638000,-5683.6804,0.000137,2]
[422793816,1779408638000,-150.0,0.00013748,2]
[422793835,1779408638000,-150.0,0.00013987,2]
[422793802,1779408638000,-103175.7408205,0.000137,2]
[422793803,1779408638000,-615.9508,0.000137,2]
[422793805,1779408638000,-1429379.2117,0.000137,2]
[422793806,1779408638000,-1000.0,0.000137,2]
[422793810,1779408638000,-151.0,0.000137,2]
[422793808,1779408638000,-151.0,0.000137,2]
[422793807,1779408638000,-401.73290602,0.000137,2]
[422793809,1779408638000,-151.0,0.000137,2]
[422793813,1779408638000,-151.0,0.000137,2]
[422793812,1779408638000,-274.16778309,0.000137,2]
[422793811,1779408638000,-151.0,0.000137,2]
[422793815,1779408638000,-18319.45980957,0.00013744,2]
[422793814,1779408638000,-2340.64923051,0.00013723,2]
[422793817,1779408638000,-4378.99277268,0.00013771,2]
[422793820,1779408638000,-25662.29859356,0.000138,2]
[422793836,1779408638000,-250.0,0.00014,2]
[422793824,1779408638000,-206.16602365,0.00013859,2]
[422793839,1779408638000,-18319.45980957,0.00014033,2]
[422793876,1779408638000,-167.2,0.00014212,2]
[422793883,1779408638000,-1621.21,0.0001427,2]
[422793878,1779408638000,-569.0,0.00014267,5]
[422793884,1779408638000,-4000.0,0.000143,5]
[422793886,1779408638000,-2340.64923051,0.00014312,2]
[422793889,1779408638000,-18319.45980957,0.00014322,2]
[422793891,1779408638000,-150.0,0.00014335,2]
[422793902,1779408638000,-2500.0,0.0001441,2]
[422793904,1779408638000,-2500.0,0.0001441,2]
[422793906,1779408638000,-2500.0,0.0001441,2]
[422793908,1779408638000,-2500.0,0.0001441,2]
[422793896,1779408638000,-167.2,0.00014384,2]
[422793898,1779408638000,-150.0,0.000144,2]
[422793900,1779408638000,-5000.0,0.000144,5]
[422793834,1779408638000,-522.64,0.00013967,2]
[422793880,1779408638000,-150.0,0.0001427,2]
[422793872,1779408638000,-3000.0,0.000142,5]
[422793893,1779408638000,-5882.58340364,0.00014336,2]
[422793866,1779408638000,-5882.58340364,0.00014147,2]
[422793851,1779408638000,-250.0,0.00014046,2]
[422793853,1779408638000,-166.69,0.00014048,2]
[422793840,1779408638000,-167.2,0.00014041,2]
[422793842,1779408638000,-1100.55287317,0.00014046,2]
[422793859,1779408638000,-150.0,0.00014074,2]
[422793874,1779408638000,-150.0,0.00014204,2]
[422793838,1779408638000,-2340.64923051,0.00014017,2]
[422793849,1779408638000,-2500.0,0.00014046,2]
[422793857,1779408638000,-226.26041219,0.00014053,2]
[422793846,1779408638000,-250.0,0.00014046,2]
[422793844,1779408638000,-195.0,0.00014046,2]
[422793863,1779408638000,-150.0,0.00014139,2]
[422793861,1779408638000,-2000.0,0.000141,5]
[422793868,1779408638000,-2340.64923051,0.00014164,2]
[422793870,1779408638000,-18319.45980957,0.00014178,2]
[422793855,1779408638000,-215.23956962,0.00014051,2]
[422793910,1779408639000,-300.0,0.0001441,2]
[422793912,1779408639000,-300.0,0.0001441,2]
[422793915,1779408639000,-300.0,0.0001441,2]
[422793919,1779408639000,-300.0,0.0001441,2]
[422793925,1779408639000,-150.0,0.00014465,2]
[422793923,1779408639000,-2340.64923051,0.00014459,2]
[422793917,1779408639000,-300.0,0.0001441,2]
[422793927,1779408639000,-13496.33917635,0.00014467,2]
[422793921,1779408639000,-250.0,0.0001441,2]
[422794133,1779408640000,-1321.0,0.00014467,2]
[422794136,1779408640000,-426.02784794,0.00014467,2]
[422794117,1779408640000,-151.0,0.000137,2]
[422794119,1779408640000,-1058.48986691,0.00014467,2]
[422794317,1779408643000,-213.39715726,0.00014467,2]
[422794319,1779408643000,-175.81059483,0.00014481,2]
[422794321,1779408643000,-1000.0,0.000145,5]
[422794314,1779408643000,-151.0,0.000137,2]
[422794318,1779408643000,-205.62583731,0.00014467,2]
[422794316,1779408643000,-163.72650959,0.00014467,2]
[422794322,1779408643000,-4433.98532354,0.00014524,2]
[422794320,1779408643000,-150.0,0.00014487,2]
[422794323,1779408643000,-1448.5980801,0.00014524,2]
[422794315,1779408643000,-1853.87640878,0.00014467,2]
[422794327,1779408643000,-205.349161,0.00014533,2]
[422794325,1779408643000,-150.0,0.0001453,2]
[422794326,1779408643000,-160.0,0.00014533,2]
[422794328,1779408643000,-250.698323,0.00014533,2]
[422794324,1779408643000,-178.452938,0.00014524,2]
[422794330,1779408643000,-1000.0,0.000146,5]
[422794331,1779408643000,-2340.64923051,0.00014606,2]
[422794333,1779408643000,-2836.89748293,0.00014611,2]
[422794329,1779408643000,-150.0,0.00014595,2]
[422794332,1779408643000,-1621.21,0.0001461,2]
[422794341,1779408646000,-2251.60216269,0.00014611,2]
[422794340,1779408646000,-205.62583731,0.00014611,2]
[422794343,1779408646000,-1097.875,0.00014611,2]
[422794342,1779408646000,-1942.5,0.00014611,2]
[422794353,1779408887000,500.0,0.00028315,120]
[422794354,1779408953000,152.0,9.091e-05,7]
[422794360,1779409538000,-83.87021783,6.505e-05,2]
[422794359,1779409538000,-253.6,6.4e-05,2]
[422794361,1779409740000,1000.0,0.00028765,120]
[422794365,1779409746000,-161.03,9.63e-05,2]
[422794364,1779409746000,-202.83055927,7.156e-05,2]
[422794363,1779409746000,-250.0,7.156e-05,2]
[422794362,1779409746000,-77.15978217,6.505e-05,2]
[422794367,1779409774000,-162.43,0.00012352,2]
[422794366,1779409774000,-200.0,0.00012299,2]
[422794368,1779409774000,-4314.06,0.00012404,2]
[422794369,1779409774000,-302.52165583,0.00012433,2]
[422794415,1779409832000,-150.0,0.00013488,2]
[422794420,1779409832000,-264.24752496,0.0001352,2]
[422794421,1779409832000,-536.93435098,0.0001352,2]
[422794423,1779409832000,-438.909,0.0001352,2]
[422794425,1779409832000,-150.0,0.00013599,2]
[422794427,1779409832000,-419.15664902,0.000136,2]
[422794429,1779409832000,-849.99999999,0.000136,2]
[422794435,1779409832000,-150.0,0.00013613,2]
[422794431,1779409832000,-5471.78040069,0.000136,2]
[422794433,1779409832000,-14990.60094122,0.000136,2]
[422794452,1779409832000,-500.0,0.00013699,2]
[422794441,1779409832000,-1323.95913218,0.00013645,2]
[422794443,1779409832000,-250.0,0.00013676,2]
[422794437,1779409832000,-162.71814,0.00013613,2]
[422794439,1779409832000,-3738.00265729,0.00013623,2]
[422794447,1779409832000,-500.0,0.00013699,2]
[422794445,1779409832000,-210.37481642,0.0001369,2]
[422794450,1779409832000,-500.0,0.00013699,2]
[422794458,1779409832000,-500.0,0.00013699,2]
[422794457,1779409832000,-500.0,0.00013699,2]
[422794411,1779409832000,-1185.66,0.00012876,2]
[422794416,1779409832000,-150.0,0.00013488,2]
[422794403,1779409832000,-150.0,0.00012608,2]
[422794418,1779409832000,-150.0,0.00013488,2]
[422794454,1779409832000,-231.90571807,0.00013699,2]
[422794394,1779409832000,-1697.47834417,0.00012433,2]
[422794395,1779409832000,-250.0,0.00012444,2]
[422794396,1779409832000,-175.52165582,0.00012456,2]
[422794397,1779409832000,-39.7179138,0.00012456,2]
[422794400,1779409832000,-1132.61812406,0.00012508,2]
[422794399,1779409832000,-248.32,0.00012489,2]
[422794398,1779409832000,-207.99,0.00012489,2]
[422794402,1779409832000,-150.0,0.0001252,2]
[422794401,1779409832000,-954.55187594,0.00012508,2]
[422794405,1779409832000,-161.03,0.00012755,2]
[422794404,1779409832000,-503.23,0.00012631,2]
[422794406,1779409832000,-164.72,0.00012755,2]
[422794407,1779409832000,-853.0,0.00012766,2]
[422794409,1779409832000,-2353.3,0.00012767,2]
[422794408,1779409832000,-1200.0,0.00012766,2]
[422794410,1779409832000,-177.03,0.00012847,2]
[422794412,1779409832000,-1185.66,0.00013198,2]
[422794417,1779409832000,-150.0,0.00013488,2]
[422794414,1779409832000,-150.0,0.00013488,2]
[422794419,1779409832000,-384.47812406,0.0001352,2]
[422794413,1779409832000,-675.66,0.00013292,2]
[422794456,1779409832000,-500.0,0.00013699,2]
[422794497,1779409832000,-500.0,0.00013699,2]
[422794451,1779409832000,-500.0,0.00013699,2]
[422794482,1779409832000,-500.0,0.00013699,2]
[422794480,1779409832000,-500.0,0.00013699,2]
[422794484,1779409832000,-500.0,0.00013699,2]
[422794486,1779409832000,-500.0,0.00013699,2]
[422794485,1779409832000,-500.0,0.00013699,2]
[422794488,1779409832000,-500.0,0.00013699,2]
[422794487,1779409832000,-500.0,0.00013699,2]
[422794491,1779409832000,-500.0,0.00013699,2]
[422794489,1779409832000,-500.0,0.00013699,2]
[422794449,1779409832000,-500.0,0.00013699,2]
[422794492,1779409832000,-500.0,0.00013699,2]
[422794490,1779409832000,-500.0,0.00013699,2]
[422794493,1779409832000,-500.0,0.00013699,2]
[422794496,1779409832000,-500.0,0.00013699,2]
[422794494,1779409832000,-500.0,0.00013699,2]
[422794498,1779409832000,-500.0,0.00013699,2]
[422794499,1779409832000,-500.0,0.00013699,2]
[422794500,1779409832000,-336.56224231,0.00013699,2]
[422794502,1779409832000,-500.0,0.00013699,2]
[422794501,1779409832000,-500.0,0.00013699,2]
[422794495,1779409832000,-500.0,0.00013699,2]
[422794478,1779409832000,-500.0,0.00013699,2]
[422794481,1779409832000,-500.0,0.00013699,2]
[422794479,1779409832000,-500.0,0.00013699,2]
[422794453,1779409832000,-500.0,0.00013699,2]
[422794455,1779409832000,-500.0,0.00013699,2]
[422794459,1779409832000,-500.0,0.00013699,2]
[422794461,1779409832000,-500.0,0.00013699,2]
[422794460,1779409832000,-500.0,0.00013699,2]
[422794462,1779409832000,-500.0,0.00013699,2]
[422794464,1779409832000,-500.0,0.00013699,2]
[422794465,1779409832000,-500.0,0.00013699,2]
[422794483,1779409832000,-500.0,0.00013699,2]
[422794467,1779409832000,-500.0,0.00013699,2]
[422794463,1779409832000,-500.0,0.00013699,2]
[422794471,1779409832000,-500.0,0.00013699,2]
[422794470,1779409832000,-500.0,0.00013699,2]
[422794466,1779409832000,-500.0,0.00013699,2]
[422794469,1779409832000,-500.0,0.00013699,2]
[422794472,1779409832000,-500.0,0.00013699,2]
[422794474,1779409832000,-500.0,0.00013699,2]
[422794473,1779409832000,-500.0,0.00013699,2]
[422794476,1779409832000,-500.0,0.00013699,2]
[422794475,1779409832000,-500.0,0.00013699,2]
[422794477,1779409832000,-500.0,0.00013699,2]
[422794468,1779409832000,-500.0,0.00013699,2]
[422794509,1779409833000,-500.0,0.00013699,2]
[422794510,1779409833000,-500.0,0.00013699,2]
[422794508,1779409833000,-500.0,0.00013699,2]
[422794505,1779409833000,-500.0,0.00013699,2]
[422794507,1779409833000,-500.0,0.00013699,2]
[422794503,1779409833000,-500.0,0.00013699,2]
[422794504,1779409833000,-500.0,0.00013699,2]
[422794512,1779409833000,-500.0,0.00013699,2]
[422794506,1779409833000,-500.0,0.00013699,2]
[422794511,1779409833000,-500.0,0.00013699,2]
[422794518,1779409833000,-202400.7136366,0.000137,2]
[422794514,1779409833000,-500.0,0.00013699,2]
[422794513,1779409833000,-500.0,0.00013699,2]
[422794523,1779409833000,-772.1,0.000137,2]
[422794521,1779409833000,-1254.41808677,0.000137,2]
[422794520,1779409833000,-81088.30194816,0.000137,2]
[422794522,1779409833000,-365668.90663953,0.000137,2]
[422794519,1779409833000,-72042.65574572,0.000137,2]
[422794524,1779409833000,-2622.4216467,0.000137,2]
[422794515,1779409833000,-500.0,0.00013699,2]
[422794516,1779409833000,-500.0,0.00013699,2]
[422794517,1779409833000,-701016.56832105,0.000137,2]
[422794565,1779409838000,-6740.93704963,0.00013889,2]
[422794559,1779409838000,-150.0,0.00013787,2]
[422794558,1779409838000,-183.06018215,0.00013776,21]
[422794564,1779409838000,-1185.66,0.00013841,2]
[422794560,1779409838000,-4645.8456,0.000138,2]
[422794561,1779409838000,-2500.0,0.000138,2]
[422794570,1779409838000,-200.0,0.00014,5]
[422794566,1779409838000,-14990.60094121,0.00013889,2]
[422794567,1779409838000,-2000.0,0.00013987,2]
[422794568,1779409838000,-3738.00265725,0.00013988,2]
[422794557,1779409838000,-14990.60094121,0.00013744,2]
[422794571,1779409838000,-6740.93704963,0.00014033,2]
[422794563,1779409838000,-189.13,0.00013818,2]
[422794556,1779409838000,-6740.93704963,0.00013744,2]
[422794552,1779409838000,-500.0,0.00013722,2]
[422794550,1779409838000,-500.0,0.00013722,2]
[422794554,1779409838000,-13252.9910298,0.00013723,2]
[422794553,1779409838000,-600.0,0.00013722,2]
[422794551,1779409838000,-500.0,0.00013722,2]
[422794569,1779409838000,-250.0,0.00014,2]
[422794548,1779409838000,-500.0,0.00013722,2]
[422794549,1779409838000,-500.0,0.00013722,2]
[422794547,1779409838000,-500.0,0.00013722,2]
[422794546,1779409838000,-914092.9815,0.000137,2]
[422794545,1779409838000,-99151.7967,0.000137,2]
[422794544,1779409838000,-838747.56101267,0.000137,2]
[422794543,1779409838000,-309.12,0.000137,2]
[422794542,1779409838000,-165440.3817628,0.000137,2]
[422794541,1779409838000,-1017.0,0.000124,2]
[422794555,1779409838000,-996.3960505,0.00013723,2]
[422794579,1779409838000,-3738.00265725,0.0001417,2]
[422794562,1779409838000,-3738.00265725,0.00013805,2]
[422794576,1779409838000,-150.0,0.00014087,2]
[422794635,1779409838000,-6206.180883,0.00014696,2]
[422794633,1779409838000,-150.0,0.00014687,2]
[422794629,1779409838000,-6740.93704963,0.00014611,2]
[422794631,1779409838000,-14990.60094121,0.00014611,2]
[422794573,1779409838000,-14990.60094121,0.00014033,2]
[422794623,1779409838000,-200.0,0.000146,5]
[422794625,1779409838000,-356.40082,0.00014602,2]
[422794621,1779409838000,-436.85422571,0.00014594,2]
[422794615,1779409838000,-282.811387,0.00014568,2]
[422794611,1779409838000,-200.0,0.000145,5]
[422794619,1779409838000,-700.0,0.00014579,2]
[422794617,1779409838000,-443.998782,0.00014568,2]
[422794613,1779409838000,-3738.00265725,0.00014535,2]
[422794607,1779409838000,-6740.93704963,0.00014467,2]
[422794609,1779409838000,-14990.60094121,0.00014467,2]
[422794627,1779409838000,-151.0,0.00014611,2]
[422794593,1779409838000,-800.0,0.000143,5]
[422794591,1779409838000,-436.85422572,0.00014287,2]
[422794578,1779409838000,-1185.66,0.00014163,2]
[422794580,1779409838000,-6740.93704963,0.00014178,2]
[422794577,1779409838000,-400.0,0.000141,5]
[422794584,1779409838000,-600.0,0.000142,5]
[422794582,1779409838000,-14990.60094121,0.00014178,2]
[422794575,1779409838000,-1680.0,0.00014043,2]
[422794602,1779409838000,-150.0,0.00014387,2]
[422794596,1779409838000,-6740.93704963,0.00014322,2]
[422794598,1779409838000,-14990.60094121,0.00014322,2]
[422794600,1779409838000,-3738.00265725,0.00014353,2]
[422794604,1779409838000,-1100.0,0.000144,5]
[422794586,1779409838000,-150.0,0.00014237,2]
[422794589,1779409838000,-3353.82135804,0.0001425,2]
[422794667,1779409839000,-475.0,0.0001477,5]
[422794669,1779409839000,-650.40786665,0.000148,2]
[422794679,1779409839000,-532.47642854,0.0001482,2]
[422794681,1779409839000,-25000.0,0.00014821,3]
[422794670,1779409839000,-200.0,0.000148,5]
[422794668,1779409839000,-285.21464521,0.00014788,2]
[422794677,1779409839000,-650.40786659,0.00014817,2]
[422794666,1779409839000,-14990.60094121,0.00014756,2]
[422794673,1779409839000,-4822.56310434,0.00014814,2]
[422794687,1779409839000,-151.0,0.00014821,2]
[422794664,1779409839000,-6740.93704963,0.00014756,2]
[422794654,1779409839000,-4822.56310434,0.00014727,2]
[422794647,1779409839000,-255.0,0.00014714,2]
[422794645,1779409839000,-2957.1420109,0.00014707,2]
[422794643,1779409839000,-200.0,0.000147,5]
[422794659,1779409839000,-350.0,0.00014738,2]
[422794641,1779409839000,-157.59445004,0.000147,2]
[422794639,1779409839000,-22921.7314423,0.00014697,2]
[422794657,1779409839000,-2287.03476376,0.00014733,2]
[422794651,1779409839000,-3738.00265725,0.00014718,2]
[422794637,1779409839000,-905.8538201,0.00014697,2]
[422794683,1779409839000,-151.0,0.00014821,2]
[422794661,1779409839000,-500.0,0.00014755,2]
[422794675,1779409839000,-2287.03476376,0.00014817,2]
[422794710,1779409839000,-25000.0,0.00014838,3]
[422794691,1779409839000,-151.0,0.00014821,2]
[422794685,1779409839000,-151.0,0.00014821,2]
[422794739,1779409839000,-408.79048169,0.00014856,3]
[422794749,1779409839000,-2148.77700831,0.00014865,3]
[422794744,1779409839000,-2034.56146986,0.00014865,3]
[422794747,1779409839000,-683.23633198,0.00014865,3]
[422794735,1779409839000,-942.62744777,0.00014856,3]
[422794732,1779409839000,-4911.37788427,0.00014856,3]
[422794727,1779409839000,-3178.49680005,0.00014856,3]
[422794729,1779409839000,-325.76549149,0.00014856,3]
[422794724,1779409839000,-14468.14001833,0.00014856,3]
[422794714,1779409839000,-25000.0,0.00014847,3]
[422794737,1779409839000,-764.8018764,0.00014856,3]
[422794712,1779409839000,-301.0,0.00014841,2]
[422794716,1779409839000,-650.40786659,0.0001485,2]
[422794722,1779409839000,-305.55556,0.0001485,2]
[422794720,1779409839000,-305.55556,0.0001485,2]
[422794741,1779409839000,-1332.46493439,0.00014865,3]
[422794708,1779409839000,-650.40786659,0.00014833,2]
[422794689,1779409839000,-151.0,0.00014821,2]
[422794706,1779409839000,-11013.37757859,0.0001483,3]
[422794693,1779409839000,-151.0,0.00014827,2]
[422794695,1779409839000,-13986.62242141,0.0001483,3]
[422794718,1779409839000,-305.55555,0.0001485,2]
[422794914,1779409840000,-260.25167463,0.0001485,2]
[422794916,1779409840000,-1143.2325043,0.00014865,3]
[422794912,1779409840000,-151.0,0.00014821,2]
[422794947,1779409840000,-1295.99999978,0.00014865,3]
[422794955,1779409840000,-273.1454,0.00014865,3]
[422794910,1779409840000,-362.16582107,0.00014587,2]
[422794973,1779409841000,-416.14321073,0.00014865,3]
[422794960,1779409841000,-375.4692725,0.00014865,3]
[422794957,1779409841000,-463.52887949,0.00014865,3]